fUSD/lending_fUSD_20251213
["ID","MTS","AMOUNT","RATE_DAILY","PERIOD"]
[398411143,1765618246292,-482.984979,0.00017995,2]
[398411144,1765618246302,-229.506462,0.00017995,2]
[398411145,1765618246311,-151.0,0.00017995,2]
[398411146,1765618246321,-482.984979,0.00017995,2]
[398411147,1765618246330,-229.506462,0.00017995,2]
[398411148,1765618246340,-151.0,0.00017995,2]
[398411149,1765618246350,-229.506462,0.00017995,2]
[398411150,1765618246359,-151.0,0.00017995,2]
[398411151,1765618246369,-1098.577686,0.00017995,2]
[398411152,1765618246378,-1098.577686,0.00017995,2]
[398411153,1765618246387,-151.0,0.00017995,2]
[398411154,1765618246396,-151.0,0.00017995,2]
[398411155,1765618246405,-151.0,0.00017995,2]
[398411156,1765618246414,-1098.577686,0.00017995,2]
[398411157,1765618246424,-1307.199992,0.00017995,2]
[398411158,1765618246434,-151.0,0.00017995,2]
[398411159,1765618246443,-151.0,0.00017995,2]
[398411160,1765618246452,-1098.577686,0.00017995,2]
[398411161,1765618246462,-1307.199992,0.00017995,2]
[398411162,1765618246471,-3805.043253,0.00017995,2]
[398411163,1765618246480,-151.0,0.00017995,2]
[398411164,1765618246489,-151.0,0.00017995,2]
[398411165,1765618246498,-221.070813,0.00017995,2]
[398411166,1765618246508,-1307.199992,0.00017995,2]
[398411167,1765618246517,-3805.043253,0.00017995,2]
[398411168,1765618246527,-152.464504,0.00017995,2]
[398411169,1765618246536,-1307.199992,0.00017995,2]
[398411170,1765618246545,-3805.043253,0.00017995,2]
[398411171,1765618246554,-3805.043253,0.00017995,2]
[398411172,1765618246564,-151.0,0.00017995,2]
[398411173,1765618246573,-166.131492,0.00017995,2]
[398411174,1765618246582,-151.138051,0.00017995,2]
[398411175,1765618246591,-166.131492,0.00017995,2]
[398411176,1765618246600,-151.0,0.00017995,2]
[398411177,1765618246609,-151.138051,0.00017995,2]
[398411178,1765618246618,-151.0,0.00017995,2]
[398411179,1765618246627,-183.650922,0.00017995,2]
[398411180,1765618246636,-166.131492,0.00017995,2]
[398411181,1765618246646,-701.632631,0.00017995,2]
[398411182,1765618246655,-151.0,0.00017995,2]
[398411183,1765618246665,-279.856822,0.00017995,2]
[398411184,1765618246674,-151.0,0.00017995,2]
[398411185,1765618246683,-154.173821,0.00017995,2]
[398411186,1765618246692,-151.138051,0.00017995,2]
[398411187,1765618246701,-701.632631,0.00017995,2]
[398411188,1765618246710,-183.650922,0.00017995,2]
[398411189,1765618246719,-151.0,0.00017995,2]
[398411190,1765618246728,-279.856822,0.00017995,2]
[398411191,1765618246737,-518.958597,0.00017995,2]
[398411192,1765618246746,-151.0,0.00017995,2]
[398411193,1765618246756,-151.138051,0.00017995,2]
[398411194,1765618246765,-183.650922,0.00017995,2]
[398411195,1765618246774,-701.632631,0.00017995,2]
[398411196,1765618246783,-279.856822,0.00017995,2]
[398411197,1765618246793,-518.958597,0.00017995,2]
[398411198,1765618246802,-220.0443,0.00017995,2]
[398411199,1765618246811,-701.632631,0.00017995,2]
[398411200,1765618246821,-183.650922,0.00017995,2]
[398411201,1765618246831,-279.856822,0.00017995,2]
[398411202,1765618246841,-518.958597,0.00017995,2]
[398411203,1765618246850,-151.0,0.00017995,2]
[398411204,1765618246859,-518.958597,0.00017995,2]
[398411205,1765618246869,-151.0,0.00017995,2]
[398411206,1765618246878,-151.0,0.00017995,2]
[398411207,1765618246887,-166.131492,0.00017995,2]
[398411208,1765618246897,-151.0,0.00017995,2]
[398411209,1765618246907,-151.0,0.00017995,2]
[398411210,1765618246916,-151.0,0.00017995,2]
[398411211,1765618246925,-151.0,0.00017995,2]
[398411212,1765618246935,-151.0,0.00017995,2]
[398411213,1765618246944,-151.0,0.00017995,2]
[398411214,1765618246954,-151.0,0.00017995,2]
[398411215,1765618246964,-151.0,0.00017995,2]
[398411216,1765618246973,-155.831518,0.00017995,2]
[398411217,1765618246983,-255.032237,0.00017995,2]
[398411218,1765618246993,-893.934501,0.00017995,2]
[398411219,1765618247002,-893.934501,0.00017995,2]
[398411220,1765618247012,-893.934501,0.00017995,2]
[398411221,1765618247022,-893.934501,0.00017995,2]
[398411222,1765618247031,-151.0,0.00017995,2]
[398411223,1765618247041,-151.0,0.00017995,2]
[398411224,1765618247051,-274.679525,0.00017995,2]
[398411225,1765618247060,-310.51986,0.00017995,2]
[398411226,1765618247070,-154.188265,0.00017995,2]
[398411227,1765618247079,-481.241282,0.00017995,2]
[398411228,1765618247088,-310.51986,0.00017995,2]
[398411229,1765618247098,-293.504653,0.00017995,2]
[398411230,1765618247108,-310.51986,0.00017995,2]
[398411231,1765618247118,-481.241282,0.00017995,2]
[398411232,1765618247127,-151.0,0.00017995,2]
[398411233,1765618247137,-203.153937,0.00017995,2]
[398411234,1765618247148,-293.504653,0.00017995,2]
[398411235,1765618247158,-310.51986,0.00017995,2]
[398411236,1765618247167,-481.241282,0.00017995,2]
[398411237,1765618247178,-185.426882,0.00017995,2]
[398411238,1765618247187,-203.153937,0.00017995,2]
[398411239,1765618247197,-151.0,0.00017995,2]
[398411240,1765618247207,-293.504653,0.00017995,2]
[398411241,1765618247216,-481.241282,0.00017995,2]
[398411242,1765618247226,-203.153937,0.00017995,2]
[398411243,1765618247236,-151.0,0.00017995,2]
[398411244,1765618247246,-293.504653,0.00017995,2]
[398411245,1765618247256,-203.153937,0.00017995,2]
[398411246,1765618247266,-151.0,0.00017995,2]
[398411247,1765618247275,-1073.732001,0.00017995,2]
[398411248,1765618247285,-482.867898,0.00017995,2]
[398411249,1765618247295,-1073.732001,0.00017995,2]
[398411250,1765618247304,-437.806932,0.00017995,2]
[398411251,1765618247313,-482.867898,0.00017995,2]
[398411252,1765618247323,-1073.732001,0.00017995,2]
[398411253,1765618247334,-1969.955772,0.00017995,2]
[398411254,1765618247343,-157.109023,0.00017995,2]
[398411255,1765618247353,-437.806932,0.00017995,2]
[398411256,1765618247362,-797.027008,0.00017995,2]
[398411257,1765618247372,-482.867898,0.00017995,2]
[398411258,1765618247382,-1073.732001,0.00017995,2]
[398411259,1765618247392,-529.242117,0.00017995,2]
[398411260,1765618247402,-1969.955772,0.00017995,2]
[398411261,1765618247412,-437.806932,0.00017995,2]
[398411262,1765618247423,-355.503979,0.00017995,2]
[398411263,1765618247433,-797.027008,0.00017995,2]
[398411264,1765618247442,-482.867898,0.00017995,2]
[398411265,1765618247452,-153.082232,0.00017995,2]
[398411266,1765618247462,-529.242117,0.00017995,2]
[398411267,1765618247472,-1969.955772,0.00017995,2]
[398411268,1765618247481,-437.806932,0.00017995,2]
[398411269,1765618247491,-355.503979,0.00017995,2]
[398411270,1765618247501,-1969.955772,0.00017995,2]
[398411271,1765618247510,-529.242117,0.00017995,2]
[398411272,1765618247521,-355.503979,0.00017995,2]
[398411273,1765618247530,-355.503979,0.00017995,2]
[398411274,1765618247540,-529.242117,0.00017995,2]
[398411275,1765618247549,-151.0,0.00017995,2]
[398411276,1765618247559,-797.027008,0.00017995,2]
[398411277,1765618247568,-151.0,0.00017995,2]
[398411278,1765618247577,-151.0,0.00017995,2]
[398411279,1765618247587,-151.0,0.00017995,2]
[398411280,1765618247597,-797.027008,0.00017995,2]
[398411281,1765618247607,-151.0,0.00017995,2]
[398411282,1765618247617,-151.0,0.00017995,2]
[398411283,1765618247626,-151.0,0.00017995,2]
[398411284,1765618247636,-6513.48481767,0.00017995,4]
[398411285,1765618247645,-21711.6160589,0.00017995,2]
[398411286,1765618247655,-15198.13124123,0.00017995,4]
[398411287,1765618247665,-1168.10261834,0.00017999,5]
[398411288,1765618247674,-220.76406029,0.00017999,5]
[398411289,1765618247684,-500.0,0.00017999,2]
[398411290,1765618247694,-500.0,0.00017999,2]
[398411291,1765618247703,-500.0,0.00017999,2]
[398411292,1765618247713,-500.0,0.00017999,2]
[398411293,1765618247722,-520.51805778,0.00017999,2]
[398411294,1765618247733,-500.0,0.00017999,2]
[398411295,1765618247742,-500.0,0.00017999,2]
[398411296,1765618247753,-500.0,0.00017999,2]
[398411297,1765618247762,-500.0,0.00017999,2]
[398411298,1765618247771,-500.0,0.00017999,2]
[398411299,1765618247781,-510.96756343,0.00017999,2]
[398411300,1765618247790,-500.0,0.00017999,2]
[398411301,1765618247800,-500.0,0.00017999,2]
[398411302,1765618247809,-500.0,0.00017999,2]
[398411303,1765618247818,-500.0,0.00017999,2]
[398411304,1765618247827,-500.0,0.00017999,2]
[398411305,1765618247837,-500.0,0.00017999,2]
[398411306,1765618247847,-500.0,0.00017999,2]
[398411307,1765618247856,-500.0,0.00017999,2]
[398411308,1765618247869,-500.0,0.00017999,2]
[398411309,1765618247879,-500.0,0.00017999,2]
[398411310,1765618247888,-504.60053044,0.00017999,2]
[398411311,1765618247897,-500.0,0.00017999,2]
[398411312,1765618247907,-500.0,0.00017999,2]
[398411313,1765618247916,-500.0,0.00017999,2]
[398411314,1765618247925,-504.05914821,0.00017999,2]
[398411315,1765618247935,-500.0,0.00017999,2]
[398411316,1765618247944,-500.0,0.00017999,2]
[398411317,1765618247954,-500.0,0.00017999,2]
[398411318,1765618247963,-500.0,0.00017999,2]
[398411319,1765618247972,-500.0,0.00017999,2]
[398411320,1765618247982,-500.0,0.00017999,2]
[398411321,1765618247992,-500.0,0.00017999,2]
[398411322,1765618248001,-11401.41065993,0.00017999,2]
[398411323,1765618248010,-500.0,0.00017999,2]
[398411324,1765618248020,-500.0,0.00017999,2]
[398411325,1765618248029,-500.0,0.00017999,2]
[398411326,1765618248039,-500.0,0.00017999,2]
[398411327,1765618248048,-500.0,0.00017999,2]
[398411328,1765618248058,-500.0,0.00017999,2]
[398411329,1765618248067,-500.0,0.00017999,2]
[398411330,1765618248077,-500.0,0.00017999,2]
[398411331,1765618248086,-500.0,0.00017999,2]
[398411332,1765618248096,-500.0,0.00017999,2]
[398411333,1765618248106,-500.0,0.00017999,2]
[398411334,1765618248116,-289.4,0.00017999,2]
[398411335,1765618248125,-1000.0,0.00018,2]
[398411336,1765618248135,-437.96641227,0.00018,2]
[398411337,1765618248144,-1962024.58146994,0.00018,2]
[398411338,1765618248154,-971748.0673253,0.00018,2]
[398411341,1765618249384,-151.0,0.00017808,2]
[398411342,1765618249393,-211.5,0.00018,2]
[398411343,1765618249852,-746.40126835,0.00015644,2]
[398411344,1765618249863,-409.55999997,0.00015644,2]
[398411361,1765618293106,824.267,0.00015331,2]
[398411385,1765618610768,-210.48003498,0.00015543,2]
[398411386,1765618616062,-339.924948,0.00015543,2]
[398411387,1765618619450,-138.59501702,0.00015543,2]
[398411388,1765618619472,-190.01467151,0.00015543,2]
[398411389,1765618621117,-290.43571445,0.00015543,2]
[398411390,1765618624004,-191.50851759,0.00015543,2]
[398411391,1765618625711,-238.41062657,0.00015543,2]
[398411392,1765618627726,-216.38189013,0.00015543,2]
[398411393,1765618629890,-73.24857975,0.00015543,2]
[398411394,1765618629914,-126.75142025,0.00015543,2]
[398411395,1765618632043,-173.24857975,0.00015543,2]
[398411396,1765618632065,-53.80542551,0.00015544,2]
[398411397,1765618637768,-176.92380103,0.00015544,2]
[398411466,1765618805745,-286.35323445,0.00015408,2]
[398411468,1765618807672,-222.41911365,0.00015408,2]
[398411470,1765618810424,-151.21678428,0.00015408,2]
[398411471,1765618811947,-238.43279707,0.00015408,2]
[398411474,1765618813407,-386.46329437,0.00015408,2]
[398411484,1765618827714,-230.28897526,0.00015408,2]
[398411487,1765618831107,-185.35041865,0.00015408,2]
[398411489,1765618835109,-170.9346957,0.00015408,2]
[398411491,1765618838961,-378.27900838,0.00015408,2]
[398411492,1765618841977,-259.78226691,0.00015408,2]
[398411495,1765618845572,-204.56704041,0.00015408,2]
[398411498,1765618847084,-174.5426435,0.00015408,2]
[398411501,1765618850713,-263.53670563,0.00015408,2]
[398411504,1765618853814,-164.76493975,0.00015408,2]
[398411542,1765618926542,162.61,0.00015571,30]
[398411564,1765619026427,1510.63954694,0.00025,120]
[398411570,1765619060811,-69.85808199,0.00015408,2]
[398411571,1765619060833,-211.45028738,0.00015441,2]
[398411573,1765619067863,-38.54971262,0.00015441,2]
[398411575,1765619067885,-155.44550103,0.00015475,2]
[398411577,1765619071264,-39.55449897,0.00015475,2]
[398411578,1765619071288,-219.62397036,0.00015501,2]
[398411589,1765619162741,241.42,0.00015342,2]
[398411594,1765619226217,-164.1197709,0.0001547,2]
[398411595,1765619228401,-258.14007396,0.0001547,2]
[398411596,1765619230896,-161.26861592,0.0001547,2]
[398411597,1765619235599,-324.70718944,0.0001547,2]
[398411598,1765619238276,-195.0,0.0001547,2]
[398411599,1765619241555,-209.45802828,0.0001547,2]
[398411600,1765619246522,-391.3263215,0.0001547,2]
[398411601,1765619246547,-22.28152107,0.00015501,2]
[398411617,1765619357429,351.9,0.00013699,2]
[398411634,1765619431758,-150.09557626,0.00015444,2]
[398411635,1765619431768,-195.0,0.00015518,2]
[398411636,1765619431777,-177.90442374,0.00015542,2]
[398411637,1765619431811,-122.09557626,0.00015542,2]
[398411638,1765619431820,-149.81029268,0.00015542,2]
[398411639,1765619431865,-1050.18970732,0.00015542,2]
[398411640,1765619431874,-300.0,0.00015542,2]
[398411641,1765619431884,-300.0,0.00015542,2]
[398411642,1765619431894,-86.36076641,0.00015543,2]
[398411643,1765619431905,-413.63923359,0.00015543,2]
[398411644,1765619431915,-278.25468174,0.00015543,2]
[398411645,1765619431924,-186.27375749,0.00015543,2]
[398411646,1765619431934,-535.26381942,0.00015543,2]
[398411647,1765619431943,-397.09630776,0.00015543,2]
[398411648,1765619431957,-19.38085626,0.00015543,2]
[398411649,1765619431967,-500.0,0.00015543,2]
[398411650,1765619431976,-500.0,0.00015543,2]
[398411651,1765619431986,-500.0,0.00015543,2]
[398411652,1765619431995,-500.0,0.00015543,2]
[398411653,1765619432007,-433.89334102,0.00015543,2]
[398411654,1765619432017,-348.59603768,0.00015544,2]
[398411655,1765619432043,-420.67473578,0.00015544,2]
[398411656,1765619432053,-33458.6041,0.00015544,2]
[398411657,1765619432062,-3338.7952,0.00015544,2]
[398411658,1765619432071,-1000.0,0.00015544,2]
[398411660,1765619432080,-87922.06378975,0.00015544,2]
[398411662,1765619432091,-37008.15945114,0.00015544,2]
[398411664,1765619432102,-23171.67738882,0.00015544,2]
[398411666,1765619432113,-25411.68106362,0.00015544,2]
[398411786,1765619439893,-424.30919668,0.00015544,2]
[398411787,1765619439906,-586062.10910999,0.00015544,2]
[398411788,1765619439917,-2500.0,0.00015544,2]
[398411789,1765619439927,-254.34,0.00015546,3]
[398411790,1765619439936,-15118.8,0.00015562,2]
[398411791,1765619439945,-150.0,0.00015569,2]
[398411792,1765619439955,-150.0,0.00015569,2]
[398411793,1765619439964,-150.0,0.00015569,2]
[398411794,1765619439973,-500.0,0.00015569,2]
[398411795,1765619439982,-156.45165699,0.00015569,2]
[398411796,1765619439992,-150.0,0.00015569,2]
[398411797,1765619440002,-150.0,0.00015569,2]
[398411798,1765619440012,-150.0,0.00015569,2]
[398411799,1765619440021,-150.0,0.00015569,2]
[398411800,1765619440030,-150.0,0.00015569,2]
[398411801,1765619440040,-500.0,0.00015569,2]
[398411802,1765619440050,-500.0,0.00015569,2]
[398411803,1765619440059,-150.0,0.00015569,2]
[398411804,1765619440075,-200.0,0.00015635,2]
[398411805,1765619440085,-200.0,0.00015635,2]
[398411806,1765619440094,-151.0,0.00015635,2]
[398411807,1765619440103,-289.58663307,0.00015635,2]
[398411808,1765619440112,-200.0,0.00015635,2]
[398411809,1765619440121,-8250.09311706,0.00015643,2]
[398411810,1765619440132,-550.52788879,0.00015643,2]
[398411811,1765619440141,-500.0,0.00015643,2]
[398411812,1765619440150,-500.0,0.00015643,2]
[398411813,1765619440160,-516.74047021,0.00015643,2]
[398411814,1765619440170,-507.60490985,0.00015643,2]
[398411815,1765619440179,-500.0,0.00015643,2]
[398411816,1765619440188,-500.0,0.00015643,2]
[398411817,1765619440198,-500.0,0.00015643,2]
[398411818,1765619440208,-500.0,0.00015643,2]
[398411819,1765619440217,-500.0,0.00015643,2]
[398411820,1765619440226,-500.0,0.00015643,2]
[398411821,1765619440237,-500.0,0.00015643,2]
[398411822,1765619440246,-500.0,0.00015643,2]
[398411823,1765619440255,-504.60053044,0.00015643,2]
[398411824,1765619440266,-500.0,0.00015643,2]
[398411825,1765619440276,-504.05914821,0.00015643,2]
[398411826,1765619440285,-500.0,0.00015643,2]
[398411827,1765619440295,-500.0,0.00015643,2]
[398411828,1765619440305,-500.0,0.00015643,2]
[398411829,1765619440314,-706.92,0.00015643,2]
[398411830,1765619440324,-150.0,0.00015706,2]
[398411831,1765619440334,-150.0,0.00015706,2]
[398411832,1765619440343,-500.0,0.00015706,2]
[398411833,1765619440352,-150.0,0.00015706,2]
[398411834,1765619440361,-150.0,0.00015706,2]
[398411835,1765619440370,-150.0,0.00015706,2]
[398411836,1765619440379,-500.0,0.00015706,2]
[398411837,1765619440388,-500.0,0.00015706,2]
[398411838,1765619440397,-150.80982889,0.00015706,2]
[398411839,1765619440406,-3752.92,0.00015771,2]
[398411840,1765619440415,-500.0,0.00015843,2]
[398411841,1765619440423,-150.0,0.00015843,2]
[398411842,1765619440432,-500.0,0.00015843,2]
[398411843,1765619440441,-500.0,0.00015843,2]
[398411844,1765619440450,-500.0,0.00015843,2]
[398411845,1765619440459,-500.0,0.00015843,2]
[398411846,1765619440468,-500.0,0.00015843,2]
[398411847,1765619440477,-500.0,0.00015843,2]
[398411848,1765619440486,-500.0,0.00015843,2]
[398411849,1765619440495,-500.0,0.00015843,2]
[398411850,1765619440504,-500.0,0.00015843,2]
[398411851,1765619440512,-510.96756343,0.00015843,2]
[398411852,1765619440522,-500.0,0.00015844,2]
[398411853,1765619440531,-500.0,0.00015844,2]
[398411854,1765619440540,-500.0,0.00015844,2]
[398411855,1765619440550,-326.58769093,0.000159,2]
[398411856,1765619440560,-706.92,0.00015917,2]
[398411857,1765619440569,-500.0,0.0001598,2]
[398411858,1765619440577,-209.988155,0.0001598,2]
[398411859,1765619440586,-500.0,0.0001598,2]
[398411860,1765619440595,-51450.5039233,0.00015999,2]
[398411861,1765619440604,-520.51805778,0.00015999,2]
[398411862,1765619440614,-500.0,0.00015999,2]
[398411863,1765619440624,-315.63593467,0.00016,2]
[398411864,1765619440634,-258.51,0.00016005,2]
[398411865,1765619440644,-250.0,0.00016006,2]
[398411866,1765619440653,-425.0,0.00016057,2]
[398411867,1765619440663,-150.0,0.00016117,2]
[398411868,1765619440672,-500.0,0.00016117,2]
[398411869,1765619440681,-268.22068745,0.00016164,2]
[398411870,1765619440690,-150.0,0.00016164,2]
[398411871,1765619440699,-150.0,0.00016164,2]
[398411872,1765619440709,-155.20312827,0.00016164,2]
[398411873,1765619440718,-500.0,0.00016164,2]
[398411874,1765619440728,-150.0,0.00016164,2]
[398411875,1765619440737,-150.0,0.00016164,2]
[398411876,1765619440746,-150.0,0.00016164,2]
[398411877,1765619440756,-150.0,0.00016164,2]
[398411878,1765619440765,-150.0,0.00016164,2]
[398411879,1765619440774,-150.0,0.00016164,2]
[398411880,1765619440784,-150.0,0.00016164,2]
[398411881,1765619440793,-150.0,0.00016164,2]
[398411882,1765619440802,-500.0,0.00016164,2]
[398411883,1765619440812,-1693.0,0.00016164,2]
[398411884,1765619440821,-152.6264382,0.00016164,2]
[398411885,1765619440832,-150.0,0.00016164,2]
[398411886,1765619440843,-500.0,0.00016164,2]
[398411887,1765619440853,-159.50716856,0.00016175,2]
[398411888,1765619440862,-150.0,0.00016175,2]
[398411889,1765619440872,-157.43451246,0.00016175,2]
[398411890,1765619440882,-150.0,0.00016175,2]
[398411891,1765619440892,-150.0,0.00016175,2]
[398411892,1765619440901,-706.92,0.00016191,2]
[398411893,1765619440911,-500.0,0.00016199,2]
[398411894,1765619440920,-500.0,0.00016254,2]
[398411895,1765619440930,-150.0,0.00016301,2]
[398411896,1765619440939,-200.88620983,0.00016301,2]
[398411897,1765619440948,-500.0,0.00016301,2]
[398411898,1765619440957,-152.31948268,0.00016301,2]
[398411899,1765619440967,-153.18226241,0.00016301,2]
[398411900,1765619440979,-263.1975105,0.00016301,2]
[398411901,1765619440988,-150.0,0.00016301,2]
[398411902,1765619440998,-150.0,0.00016301,2]
[398411903,1765619441007,-150.0,0.00016301,2]
[398411904,1765619441017,-189.53122476,0.00016301,2]
[398411905,1765619441026,-500.0,0.00016301,2]
[398411906,1765619441035,-1693.0,0.00016301,2]
[398411907,1765619441045,-150.0,0.00016301,2]
[398411908,1765619441054,-500.0,0.00016301,2]
[398411909,1765619441064,-500.0,0.00016391,2]
[398411910,1765619441073,-500.0,0.00016399,2]
[398411911,1765619441083,-500.0,0.00016437,2]
[398411912,1765619441092,-500.0,0.00016437,2]
[398411913,1765619441102,-500.0,0.00016437,2]
[398411914,1765619441111,-150.0,0.00016438,2]
[398411915,1765619441121,-402.55406266,0.00016438,2]
[398411916,1765619441131,-150.0,0.00016438,2]
[398411917,1765619441140,-500.0,0.00016438,2]
[398411918,1765619441150,-1693.0,0.00016438,2]
[398411919,1765619441159,-150.0,0.00016438,2]
[398411920,1765619441170,-500.0,0.00016438,2]
[398411921,1765619441179,-150.0,0.00016438,2]
[398411922,1765619441190,-500.0,0.00016438,2]
[398411923,1765619441199,-500.0,0.00016438,2]
[398411924,1765619441210,-500.0,0.00016438,2]
[398411925,1765619441219,-500.0,0.00016438,2]
[398411926,1765619441229,-500.0,0.00016438,2]
[398411927,1765619441238,-500.0,0.00016438,2]
[398411928,1765619441247,-500.0,0.00016438,2]
[398411929,1765619441256,-500.0,0.00016438,2]
[398411930,1765619441266,-500.0,0.00016438,2]
[398411931,1765619441277,-500.0,0.00016438,2]
[398411932,1765619441287,-500.0,0.00016438,2]
[398411933,1765619441297,-500.0,0.00016438,2]
[398411934,1765619441306,-500.0,0.00016438,2]
[398411935,1765619441315,-500.0,0.00016438,2]
[398411936,1765619441325,-500.0,0.00016438,2]
[398411937,1765619441334,-500.0,0.00016438,2]
[398411938,1765619441343,-500.0,0.00016438,2]
[398411939,1765619441353,-500.0,0.00016438,2]
[398411940,1765619441362,-500.0,0.00016438,2]
[398411941,1765619441372,-500.0,0.00016438,2]
[398411942,1765619441381,-500.0,0.00016438,2]
[398411943,1765619441391,-500.0,0.00016438,2]
[398411944,1765619441400,-500.0,0.00016438,2]
[398411945,1765619441410,-500.0,0.00016438,2]
[398411946,1765619441419,-500.0,0.00016438,2]
[398411947,1765619441428,-634.28059052,0.00016438,2]
[398411948,1765619441437,-500.0,0.00016438,2]
[398411949,1765619441447,-500.0,0.00016438,2]
[398411950,1765619441456,-500.0,0.00016438,2]
[398411951,1765619441466,-500.0,0.00016438,2]
[398411952,1765619441475,-500.0,0.00016438,2]
[398411953,1765619441484,-500.0,0.00016438,2]
[398411954,1765619441494,-500.0,0.00016438,2]
[398411955,1765619441503,-500.0,0.00016438,2]
[398411956,1765619441512,-500.0,0.00016438,2]
[398411957,1765619441522,-500.0,0.00016438,2]
[398411958,1765619441532,-500.0,0.00016438,2]
[398411959,1765619441541,-500.0,0.00016438,2]
[398411960,1765619441554,-500.0,0.00016438,2]
[398411962,1765619441563,-500.0,0.00016438,2]
[398411963,1765619441573,-6804.34,0.00016438,2]
[398411965,1765619441583,-706.92,0.00016465,2]
[398411966,1765619441593,-500.0,0.00016521,2]
[398411967,1765619441602,-500.0,0.00016528,2]
[398411968,1765619441612,-500.0,0.00016574,2]
[398411969,1765619441623,-213.15981732,0.00016575,2]
[398411970,1765619441632,-150.0,0.00016575,2]
[398411971,1765619441643,-500.0,0.00016575,2]
[398411972,1765619441652,-1693.0,0.00016575,2]
[398411973,1765619441662,-150.0,0.00016575,2]
[398411974,1765619441671,-500.0,0.00016575,2]
[398411975,1765619441680,-150.0,0.00016575,2]
[398411976,1765619441690,-150.0,0.00016661,2]
[398411977,1765619441699,-500.0,0.00016665,2]
[398411978,1765619441709,-200.0,0.00016712,2]
[398411979,1765619441718,-500.0,0.00016712,2]
[398411980,1765619441727,-1693.0,0.00016712,2]
[398411981,1765619441737,-150.0,0.00016712,2]
[398411982,1765619441746,-500.0,0.00016712,2]
[398411983,1765619441755,-150.0,0.00016712,2]
[398411984,1765619441765,-621.34449014,0.00016719,2]
[398411985,1765619441775,-706.92,0.00016739,2]
[398411986,1765619441784,-150.0,0.00016774,2]
[398411987,1765619441794,-150.0,0.00016798,2]
[398411988,1765619441803,-331.61392116,0.00016802,2]
[398411989,1765619441812,-500.0,0.00016849,2]
[398411990,1765619441821,-1693.0,0.00016849,2]
[398411991,1765619441830,-250.0,0.00016849,2]
[398411992,1765619441839,-500.0,0.00016849,2]
[398411993,1765619441850,-200.0,0.00016849,2]
[398411994,1765619441861,-1158.79284885,0.00016931,2]
[398411995,1765619441871,-200.0,0.00016935,2]
[398411996,1765619441881,-160.06,0.00016954,2]
[398411997,1765619441892,-500.0,0.00016972,2]
[398411998,1765619441901,-500.0,0.00016973,2]
[398411999,1765619441910,-500.0,0.00016973,2]
[398412000,1765619441920,-500.0,0.00016973,2]
[398412001,1765619441930,-500.0,0.00016973,2]
[398412002,1765619441940,-500.0,0.00016973,2]
[398412003,1765619441949,-500.0,0.00016973,2]
[398412004,1765619441959,-500.0,0.00016973,2]
[398412005,1765619441967,-184.52566928,0.00016981,2]
[398412006,1765619441977,-500.0,0.00016986,2]
[398412007,1765619441986,-1693.0,0.00016986,2]
[398412008,1765619441995,-500.0,0.00016986,2]
[398412009,1765619442004,-626.85,0.00016986,2]
[398412010,1765619442013,-250.0,0.00016988,2]
[398412011,1765619442022,-500.0,0.00016999,2]
[398412012,1765619442031,-420.0,0.00017001,2]